Workbook

Sheet Planilha1
A1: 1.4 Barracão de Obras
D2: CODEVASF | G2: JOTA SERVICE
A3: INSUMOS | D3: QUANT | E3: PREÇO UNIT | F3: CUSTO HORÁRIO | G3: QUANT | H3: PREÇO UNIT | I3: CUSTO HORÁRIO
A5: 1213 | B5: CARPINTEIRO DE FORMAS | D5: 2 | E5: 14.68 | F5: =D5*E5 -> 29.36 | G5: 2 | H5: 14.68 | I5: =G5*H5 -> 29.36
A6: 4750 | B6: PEDREIRO | D6: 1.5 | E6: 14.68 | F6: =D6*E6 -> 22.02 | G6: 1.5 | H6: 14.68 | I6: =G6*H6 -> 22.02
A7: 6111 | B7: SERVENTE | D7: 1.12 | E7: 10.34 | F7: 11.5808 | G7: 1.12 | H7: 10.34 | I7: 11.5808
A8: 6189 | B8: TABUA DE MADEIRA NAO APARELHADA *2,5 X 30* CM, CEDRINHO OU EQUIVALENTE DA REGIAO | D8: 2 | E8: 12.18 | F8: 24.36 | G8: 2 | H8: 12.18 | I8: 24.36
A9: 35274 | B9: PILAR DE MADEIRA NAO APARELHADA *10 X 10* CM, MACARANDUBA, ANGELIM OU EQUIVALENTE DA REGIAO | D9: 2 | E9: 29.77 | F9: 59.54 | G9: 0 | H9: 0 | I9: 0
A10: 20213 | B10: VIGA DE MADEIRA APARELHADA *6 X 12* CM, MACARANDUBA, ANGELIM OU EQUIVALENTE DA REGIAO | D10: 2 | E10: 16.33 | F10: 32.66 | G10: 2 | H10: 16.33 | I10: 32.66
A11: 7213 | B11: TELHA DE FIBROCIMENTO ONDULADA E = 4 MM, DE 2,44 X 0,50 M (SEM AMIANTO) | D11: 2 | E11: 12.94 | F11: 25.88 | G11: 2 | H11: 12.94 | I11: 25.88
A12: 6212 | B12: TABUA DE MADEIRA NAO APARELHADA *2,5 X 30 CM (1 X 12 ") PINUS, MISTA OU EQUIVALENTE DA REGIAO | D12: 2 | E12: 10.5 | F12: 21 | G12: 2 | H12: 10.5 | I12: 21
A13: 4721 | B13: PEDRA BRITADA N. 1 (9,5 a 19 MM) POSTO PEDREIRA/FORNECEDOR, SEM FRETE | D13: 1 | E13: 62.24 | F13: 62.24 | G13: 1 | H13: 62.24 | I13: 62.24
A14: 1379 | B14: CIMENTO PORTLAND COMPOSTO CP II-32 | D14: 30 | E14: 0.54 | F14: 16.2 | G14: 30 | H14: 0.54 | I14: 16.2
A15: 5061 | B15: PREGO DE ACO POLIDO COM CABECA 18 X 27 (2 1/2 X 10) | D15: 1 | E15: 12.25 | F15: 12.25 | G15: 1 | H15: 12.25 | I15: 12.25
A16: 4460 | B16: SARRAFO DE MADEIRA NAO APARELHADA *2,5 X 10 CM, MACARANDUBA, ANGELIM OU EQUIVALENTE DA REGIAO | D16: 5 | E16: 7.32 | F16: 36.6 | G16: 5 | H16: 7.32 | I16: 36.6
A17: 367 | B17: AREIA GROSSA - POSTO JAZIDA/FORNECEDOR (RETIRADO NA JAZIDA, SEM TRANSPORTE) | D17: 1 | E17: 52.5 | F17: 52.5 | G17: 1 | H17: 52.5 | I17: 52.5
A18: 1357 | B18: CHAPA DE MADEIRA COMPENSADA RESINADA PARA FORMA DE CONCRETO, DE *2,2 X 1,1* M, E = 12 MM | D18: 1 | E18: 57.96 | F18: 57.96 | G18: 1 | H18: 57.96 | I18: 57.96
A19: 20247 | B19: PREGO DE ACO POLIDO COM CABECA 15 X 15 (1 1/4 X 13) | D19: 2 | E19: 13.8 | F19: 27.6 | G19: 2 | H19: 13.8 | I19: 27.6
D20: TOTAL ATIVIDADES: | F20: =SUM(F5:F19) -> 491.7508 | G20: TOTAL ATIVIDADES: | I20: =SUM(I5:I19) -> 432.2108
A23: 4.1 804036 - Corpo BSTC D=1,00 m
D24: CODEVASF | J24: JOTA SERVICE
A25: A - EQUIPAMENTOS | D25: QUANT | E25: UTILIZAÇÃO | G25: CUSTO OPERACIONAL | I25: CUSTO HORÁRIO | J25: QUANT | K25: UTILIZAÇÃO | M25: CUSTO OPERACIONAL | O25: CUSTO HORÁRIO
E26: PROD | F26: IMPR | G26: PROD | H26: IMPR | K26: PROD | L26: IMPR | M26: PROD | N26: IMPR
A27: E9686 | B27: Caminhão carroceria com guindauto com capacidade de 20 t.m - 136 Kw | D27: 1 | E27: 1 | F27: 0 | G27: 131.3116 | H27: 51.4148 | I27: =((E27*G27)+(H27*F27))*D27 -> 131.3116 | J27: 0.4709635 | K27: 1 | L27: 0 | M27: 131.3116 | N27: 51.4148 | O27: =((K27*M27)+(N27*L27))*J27 -> 61.84297073
E28: TOTAL EQUIPAMENTOS: | I28: =SUM(I27:I27) -> 131.3116 | K28: TOTAL EQUIPAMENTOS: | O28: =SUM(O27:O27) -> 61.84297073
D30: CODEVASF | G30: JOTA SERVICE
A31: B - MÃO DE OBRA | D31: QUANT | E31: PREÇO UNIT | F31: CUSTO HORÁRIO | G31: QUANT | H31: PREÇO UNIT | I31: CUSTO HORÁRIO
A33: P9821 | B33: Pedreiro | D33: 1 | E33: 21.597 | F33: =D33*E33 -> 21.597 | G33: 0.4709635 | H33: 21.597 | I33: =H33*G33 -> 10.17139871
A34: P9824 | B34: Servente | D34: 3 | E34: 16.154 | F34: =E34*D34 -> 48.462 | G34: 1.4128902 | H34: 16.154 | I34: =H34*G34 -> 22.82382829
D35: TOTAL MÃO DE OBRA | F35: =SUM(F33:F34) -> 70.059 | G35: TOTAL MÃO DE OBRA | I35: =SUM(I33:I34) -> 32.995227
D37: CODEVASF | G37: JOTA SERVICE
A38: D - ATIVIDADES AUXILIARES | D38: QUANT | E38: PREÇO UNIT | F38: CUSTO HORÁRIO | G38: QUANT | H38: PREÇO UNIT | I38: CUSTO HORÁRIO
A40: 1109670 | B40: Argamassa de cimento e areia 1:4 - areia extraída | D40: 0.00593 | E40: 238.26 | F40: =D40*E40 -> 1.4128818 | G40: 0.0027929 | H40: 238.26 | I40: =H40*G40 -> 0.665436354
A41: 1106164 | B41: Concreto ciclópico fck = 20 MPa - confecção em betoneira e lançamento manual - areia extraída, brita e pedra de mão | D41: 0.402 | E41: 216.26 | F41: =E41*D41 -> 86.93652 | G41: 0.1893273 | H41: 216.26 | I41: =H41*G41 -> 40.9439219
A42: 3103302 | B42: Formas de tábuas de pinho para dispositivos de drenagem - utilização de 3 vezes - confecção, instalação e retirada | D42: 0.8 | E42: 56.03 | F42: =E42*D42 -> 44.824 | G42: 0.3767707 | H42: 56.03 | I42: =H42*G42 -> 21.11046232
D43: TOTAL ATIVIDADES | F43: =SUM(F40:F42) -> 133.1734018 | G43: TOTAL ATIVIDADES | I43: =SUM(I40:I42) -> 62.71982057
A46: 4.2 804393 - Boca BSTC D=1,00 m
D47: CODEVASF | G47: JOTA SERVICE
A48: INSUMOS | D48: QUANT | E48: PREÇO UNIT | F48: CUSTO HORÁRIO | G48: QUANT | H48: PREÇO UNIT | I48: CUSTO HORÁRIO
A50: 1107892 | B50: Concreto fck = 20 MPa - confecção em betoneira e lançamento manual - areia e brita comerciais | D50: 3.567 | E50: 311.18 | F50: =D50*E50 -> 1109.97906 | G50: 2.8373327 | H50: 311.18 | I50: =H50*G50 -> 882.9211896
A51: 3103302 | B51: Formas de tábuas de pinho para dispositivos de drenagem - utilização de 3 vezes - confecção, instalação e retirada | D51: 15.68 | E51: 56.03 | F51: =E51*D51 -> 878.5504 | G51: 12.472492 | H51: 56.03 | I51: =H51*G51 -> 698.8337268
D52: TOTAL ATIVIDADES: | F52: =SUM(F50:F51) -> 1988.52946 | G52: TOTAL ATIVIDADES: | I52: =SUM(I50:I51) -> 1581.754916
